bitfinex/quotes_BTCUSD_20250916
["timestamp","ask_amount","ask_price","bid_price","bid_amount"]
[1758036505917,0.63063591,115230.0,115220.0,0.49250145]
[1758036506136,0.63063591,115230.0,115220.0,0.90698163]
[1758036506713,0.63063591,115230.0,115220.0,0.09250145]
[1758036507162,0.63063591,115230.0,115220.0,0.50698163]
[1758036508335,0.63063591,115230.0,115220.0,0.09250145]
[1758036510963,0.63063591,115230.0,115220.0,0.49250145]
[1758036512240,0.63063591,115230.0,115220.0,0.90698163]
[1758036513633,0.63063591,115230.0,115220.0,0.49250145]
[1758036513862,0.63063591,115230.0,115220.0,0.90698163]
[1758036514184,0.35555591,115230.0,115220.0,0.90698163]
[1758036514622,0.63059591,115230.0,115220.0,0.90698163]
[1758036514849,0.63059591,115230.0,115220.0,0.49250145]
[1758036515048,0.63059591,115230.0,115220.0,0.90698163]
[1758036517816,0.63059591,115230.0,115220.0,0.49250145]
[1758036518025,0.63059591,115230.0,115220.0,0.90698163]
[1758036518650,0.63059591,115230.0,115220.0,0.50698163]
[1758036518860,1.37863609,115230.0,115220.0,0.09250145]
[1758036519935,1.37763609,115230.0,115220.0,0.08950145]
[1758036521534,1.37863609,115230.0,115220.0,0.09050145]
[1758036521963,1.37763609,115230.0,115220.0,0.08750145]
[1758036522178,1.37863609,115230.0,115220.0,0.09050145]
[1758036522391,0.96415591,115230.0,115220.0,0.09050145]
[1758036522605,1.37863609,115230.0,115220.0,0.09050145]
[1758036522898,1.38740529,115230.0,115220.0,0.09050145]
[1758036523455,1.37863609,115230.0,115220.0,0.09050145]
[1758036523660,1.37863609,115230.0,115220.0,0.49050145]
[1758036524169,0.96415591,115230.0,115220.0,0.49050145]
[1758036524392,1.37863609,115230.0,115220.0,0.49050145]
[1758036524854,1.38742789,115230.0,115220.0,0.49050145]
[1758036525887,1.37863609,115230.0,115220.0,0.49050145]
[1758036526961,1.37863609,115230.0,115220.0,0.09050145]
[1758036527365,1.37863609,115230.0,115220.0,0.49050145]
[1758036529231,1.38717125,115230.0,115220.0,0.49050145]
[1758036529985,0.96415591,115230.0,115220.0,0.49050145]
[1758036530187,0.66441591,115230.0,115220.0,0.49050145]
[1758036530386,0.96194591,115230.0,115220.0,0.09050145]
[1758036530593,0.68694591,115230.0,115220.0,0.09050145]
[1758036530795,0.96194591,115230.0,115220.0,0.90498163]
[1758036531286,0.96194591,115230.0,115220.0,0.49050145]
[1758036532023,0.68694591,115230.0,115220.0,0.49050145]
[1758036532199,0.96194591,115230.0,115220.0,0.90498163]
[1758036535364,0.96194591,115230.0,115220.0,0.49050145]
[1758036537894,0.68694591,115230.0,115220.0,0.49050145]
[1758036538033,0.96190591,115230.0,115220.0,0.49050145]
[1758036538441,0.96190591,115230.0,115220.0,0.09050145]
[1758036539085,0.96190591,115230.0,115220.0,0.49050145]
[1758036539463,0.66441591,115230.0,115220.0,0.49050145]
[1758036539663,0.93418591,115230.0,115220.0,0.92986163]
[1758036540102,0.93615591,115230.0,115220.0,0.92986163]
[1758036540280,0.93911591,115230.0,115220.0,0.92986163]
[1758036540480,0.93911591,115230.0,115220.0,0.90498163]
[1758036540680,0.93615591,115230.0,115220.0,0.92986163]
[1758036541297,0.93615591,115230.0,115220.0,0.51538145]
[1758036541504,0.93911591,115230.0,115220.0,0.51538145]
[1758036541709,0.66415591,115230.0,115220.0,0.92986163]
[1758036541906,0.65922591,115230.0,115220.0,1.0785626]
[1758036542123,0.33566,115230.0,115220.0,1.1034426]
[1758036542334,0.61058,115230.0,115220.0,1.1034426]
[1758036543172,0.33566,115230.0,115220.0,1.1119426]
[1758036543386,0.61058,115230.0,115220.0,1.52642278]
[1758036543604,0.27702,115230.0,115220.0,1.55249419]
[1758036545235,0.27702,115230.0,115220.0,1.13801401]
[1758036546004,0.27702,115230.0,115220.0,1.55249419]
[1758036546635,0.27702,115230.0,115220.0,1.13801401]
[1758036548810,0.27702,115230.0,115220.0,1.55249419]
[1758036549150,0.27702,115230.0,115220.0,1.12951401]
[1758036549771,0.27702,115230.0,115220.0,1.54399419]
[1758036549973,0.27702,115230.0,115220.0,1.12951401]
[1758036551869,0.27702,115230.0,115220.0,1.54399419]
[1758036553759,0.27702,115230.0,115220.0,1.12951401]
[1758036554208,0.27702,115230.0,115220.0,1.13801401]
[1758036554438,0.27702,115230.0,115220.0,1.55249419]
[1758036554682,0.27702,115230.0,115220.0,1.13801401]
[1758036558431,0.27702,115230.0,115220.0,0.72353383]
[1758036558666,0.27702,115230.0,115220.0,1.13801401]
[1758036561131,0.27702,115230.0,115220.0,0.72353383]
[1758036561595,0.27702,115230.0,115220.0,1.13801401]
[1758036563817,0.27702,115230.0,115220.0,1.09186399]
[1758036565046,0.27702,115230.0,115220.0,0.72353383]
[1758036565486,0.27702,115230.0,115220.0,1.09186399]
[1758036566526,0.45058591,115230.0,115220.0,0.69865383]
[1758036566688,0.48004591,115230.0,115220.0,0.52507286]
[1758036566892,0.58004591,115230.0,115220.0,0.49900145]
[1758036569814,0.58004591,115230.0,115220.0,0.09900145]
[1758036570035,0.63004591,115230.0,115220.0,0.09900145]
[1758036570510,0.63004591,115230.0,115220.0,0.49900145]
[1758036570719,0.35512591,115230.0,115220.0,0.49900145]
[1758036570973,0.62984591,115230.0,115220.0,0.49900145]
[1758036573419,0.62984591,115230.0,115220.0,0.09900145]
[1758036573866,0.35512591,115230.0,115220.0,0.49900145]
[1758036574073,0.62984591,115230.0,115220.0,0.49900145]
[1758036576420,0.62980591,115230.0,115220.0,0.49900145]
[1758036576855,0.62980591,115230.0,115220.0,0.09900145]
[1758036577497,0.62980591,115230.0,115220.0,0.49900145]
[1758036580417,0.35512591,115230.0,115220.0,0.09900145]
[1758036580616,0.62980591,115230.0,115220.0,0.09900145]
[1758036580834,0.62980591,115230.0,115220.0,0.49900145]
[1758036581548,0.96332591,115230.0,115220.0,0.49900145]
[1758036583912,0.96332591,115230.0,115220.0,0.09900145]
[1758036584330,0.96332591,115230.0,115220.0,0.49900145]
[1758036585430,0.68864591,115230.0,115220.0,0.49900145]
[1758036585618,0.96328591,115230.0,115220.0,0.09900145]
[1758036585882,1.33161607,115230.0,115220.0,0.09900145]
[1758036586092,0.96328591,115230.0,115220.0,0.09900145]
[1758036589577,0.96328591,115230.0,115220.0,0.49900145]
[1758036590004,0.68864591,115230.0,115220.0,0.49900145]
[1758036590221,0.96328591,115230.0,115220.0,0.49900145]
[1758036592238,0.68864591,115230.0,115220.0,0.49900145]
[1758036592451,0.96324591,115230.0,115220.0,0.49900145]
[1758036592867,0.96324591,115230.0,115220.0,0.09900145]
[1758036593313,0.96324591,115230.0,115220.0,0.49050145]
[1758036594635,0.65918591,115230.0,115220.0,0.85883161]
[1758036594850,0.93378591,115230.0,115220.0,0.88253161]
[1758036595088,0.88378591,115230.0,115220.0,1.05611258]
[1758036599135,0.88378591,115230.0,115220.0,1.05615258]
[1758036599522,0.61018,115230.0,115220.0,1.05615258]
[1758036599955,0.61018,115230.0,115220.0,1.082224]
[1758036603611,0.0021,115230.0,115220.0,1.082224]
[1758036603839,0.27662,115230.0,115220.0,1.082224]
[1758036604702,0.27662,115230.0,115220.0,1.422224]
[1758036604908,0.27652,115230.0,115220.0,1.422224]
[1758036606735,0.27552,115230.0,115220.0,1.421224]
[1758036606944,0.0001,115250.0,115230.0,0.51356591]
[1758036607153,0.0001,115250.0,115240.0,1.00521262]
[1758036607359,0.27458,115250.0,115240.0,1.00521262]
[1758036607572,0.27458,115250.0,115240.0,1.42954262]
[1758036607778,0.27458,115250.0,115240.0,1.45560686]
[1758036607984,0.27458,115250.0,115240.0,1.44710686]
[1758036609052,0.27458,115250.0,115240.0,1.512475]
[1758036609263,0.27458,115250.0,115240.0,1.514475]
[1758036609470,0.27558,115250.0,115240.0,1.515475]
[1758036609618,0.27548,115250.0,115240.0,1.515475]
[1758036612993,0.27548,115250.0,115240.0,1.523975]
[1758036614019,0.001,115250.0,115240.0,1.523975]
[1758036614231,0.2754,115250.0,115240.0,1.523975]
[1758036614654,0.2754,115250.0,115240.0,1.863975]
[1758036617481,0.2754,115250.0,115240.0,1.49564484]
[1758036622485,0.001,115250.0,115240.0,1.49564484]
[1758036622692,0.27532,115250.0,115240.0,1.49564484]
[1758036622926,0.27532,115250.0,115240.0,1.99564484]
[1758036623625,0.001,115250.0,115240.0,1.99564484]
[1758036623839,0.27532,115250.0,115240.0,1.99564484]
[1758036625960,0.27532,115250.0,115240.0,2.04152528]
[1758036632923,0.6895306,115250.0,115240.0,1.62731468]
[1758036633131,0.86806639,115250.0,115240.0,1.25448468]
[1758036633351,0.89134639,115250.0,115240.0,1.25448468]
[1758036633780,0.89144639,115250.0,115240.0,1.25448468]
[1758036633975,0.89144639,115250.0,115240.0,1.27901468]
[1758036634429,0.47723579,115250.0,115240.0,1.27901468]
[1758036634624,0.89144639,115250.0,115240.0,1.27901468]
[1758036635272,0.89136639,115250.0,115240.0,1.27901468]
[1758036635479,0.86808639,115250.0,115240.0,1.27901468]
[1758036636314,0.89281639,115250.0,115240.0,1.27901468]
[1758036637898,0.89281639,115250.0,115240.0,1.25448468]
[1758036638124,0.89281639,115250.0,115240.0,1.26298468]
[1758036638616,0.89281639,115250.0,115240.0,1.08943383]
[1758036638617,0.99281639,115250.0,115240.0,1.08943383]
[1758036638887,0.99281639,115250.0,115240.0,1.06336959]
[1758036639546,0.99277639,115250.0,115240.0,1.06336959]
[1758036639769,0.55383579,115250.0,115240.0,1.23692044]
[1758036639983,0.96804639,115250.0,115240.0,1.26145044]
[1758036640206,0.99277639,115250.0,115240.0,1.26145044]
[1758036640432,0.99277639,115250.0,115240.0,1.23692044]
[1758036640861,0.99277639,115250.0,115240.0,1.06336959]
[1758036641964,0.99277639,115250.0,115240.0,1.23692044]
[1758036642423,0.99277639,115250.0,115240.0,0.73692044]
[1758036643118,0.57856579,115250.0,115240.0,0.73692044]
[1758036643337,0.99277639,115250.0,115240.0,0.56336959]
[1758036643547,0.99277639,115250.0,115240.0,0.73692044]
[1758036643763,0.99277639,115250.0,115240.0,0.72842044]
[1758036644418,0.99277639,115250.0,115240.0,0.55486959]
[1758036645882,0.99277639,115250.0,115240.0,0.55486959]
[1758036646276,0.99277639,115250.0,115240.0,0.72842044]
[1758036646501,0.99277639,115250.0,115240.0,0.55486959]
[1758036647884,0.71857639,115250.0,115240.0,0.55486959]
[1758036648092,0.99273639,115250.0,115240.0,0.72842044]
[1758036648329,0.71857639,115250.0,115240.0,0.55486959]
[1758036648750,0.99273639,115250.0,115240.0,0.72842044]
[1758036648981,0.99273639,115250.0,115240.0,0.56336959]
[1758036650479,0.99273639,115250.0,115240.0,0.73692044]
[1758036650683,0.57852579,115250.0,115240.0,0.73692044]
[1758036650895,0.99273639,115250.0,115240.0,0.73692044]
[1758036651930,0.30436579,115250.0,115240.0,0.76145044]
[1758036652160,0.0011,115250.0,115240.0,1.17566104]
[1758036652377,0.27526,115250.0,115240.0,1.17566104]
[1758036652590,0.27526,115250.0,115240.0,1.201726]
[1758036652591,0.37526,115250.0,115240.0,1.201726]
[1758036653440,0.27526,115250.0,115240.0,1.201726]
[1758036653653,0.1011,115250.0,115240.0,1.201726]
[1758036653867,0.37522,115250.0,115240.0,1.201726]
[1758036654117,0.37522,115250.0,115240.0,1.193226]
[1758036657780,0.37522,115250.0,115240.0,0.7790154]
[1758036658018,0.37522,115250.0,115240.0,1.193226]
[1758036659041,0.37522,115250.0,115240.0,1.201726]
[1758036659888,0.37522,115250.0,115240.0,0.7875154]
[1758036660092,0.37522,115250.0,115240.0,1.201726]
[1758036661496,0.37522,115250.0,115240.0,0.7875154]
[1758036661726,0.37522,115250.0,115240.0,1.201726]
[1758036662173,0.54875579,115250.0,115240.0,0.7629854]
[1758036662378,0.57507579,115250.0,115240.0,0.7629854]
[1758036662593,0.99224639,115250.0,115240.0,0.7629854]
[1758036663917,0.99234639,115250.0,115240.0,0.58943455]
[1758036664117,0.99234639,115250.0,115240.0,0.56336959]
[1758036664484,0.99234639,115250.0,115240.0,0.55486959]
[1758036665337,0.99234639,115250.0,115240.0,0.15486959]
[1758036665914,0.71822639,115250.0,115240.0,0.55486959]
[1758036666125,0.99230639,115250.0,115240.0,0.55486959]
[1758036666538,0.99230639,115250.0,115240.0,0.72842044]
[1758036666764,0.99230639,115250.0,115240.0,0.55486959]
[1758036667388,0.99230639,115250.0,115240.0,0.72842044]
[1758036667738,0.71822639,115250.0,115240.0,0.72842044]
[1758036668210,0.54867579,115250.0,115240.0,0.75134044]
[1758036668622,0.27463579,115250.0,115240.0,0.75134044]
[1758036668832,0.54867579,115250.0,115240.0,0.75134044]
[1758036669017,0.55368579,115250.0,115240.0,0.75134044]
[1758036669445,0.55368579,115250.0,115240.0,0.75984044]
[1758036669659,0.96789639,115250.0,115240.0,0.75984044]
[1758036670250,0.55368579,115250.0,115240.0,0.58628959]
[1758036670403,0.99231639,115250.0,115240.0,0.75984044]
[1758036672269,0.30406579,115250.0,115240.0,0.75134044]
[1758036672464,0.99231639,115250.0,115240.0,0.75134044]
[1758036674195,0.71827639,115250.0,115240.0,0.75134044]
[1758036674383,0.99231639,115250.0,115240.0,0.75134044]
[1758036674618,0.57810579,115250.0,115240.0,0.75134044]
[1758036674848,0.99231639,115250.0,115240.0,0.75134044]
[1758036675839,0.57810579,115250.0,115240.0,0.75134044]
[1758036676074,0.99231639,115250.0,115240.0,0.75134044]
[1758036676289,0.71827639,115250.0,115240.0,0.75134044]
[1758036676518,0.99227639,115250.0,115240.0,0.75134044]
[1758036677357,0.96785639,115250.0,115240.0,0.75984044]
[1758036678377,0.10311,115250.0,115240.0,0.75984044]
[1758036678613,0.1011,115250.0,115240.0,1.17405104]
[1758036678860,0.3751,115250.0,115240.0,1.17405104]
[1758036679071,0.1011,115250.0,115240.0,1.17405104]
[1758036679537,0.3751,115250.0,115240.0,1.17405104]
[1758036680424,0.3751,115250.0,115240.0,1.20011686]
[1758036681520,0.2751,115250.0,115240.0,1.20011686]
[1758036682497,0.27506,115250.0,115240.0,1.20011686]
[1758036682724,0.27496,115250.0,115240.0,1.20011686]
[1758036686352,0.27496,115250.0,115240.0,1.19161686]
[1758036686787,0.27492,115250.0,115240.0,1.53161686]
[1758036687753,0.27492,115250.0,115240.0,1.48554898]
[1758036690381,0.08336,115260.0,115250.0,0.51353579]
[1758036690593,0.35728,115260.0,115250.0,0.99109996]
[1758036693074,0.27492,115260.0,115250.0,1.42016092]
[1758036693942,0.27492,115260.0,115250.0,1.69404092]
[1758036694364,0.27492,115260.0,115250.0,1.69304092]
[1758036694513,0.001,115260.0,115250.0,1.69404092]
[1758036694923,0.001,115260.0,115250.0,2.19304092]
[1758036695133,0.27388,115270.0,115260.0,0.17352073]
[1758036695515,0.27388,115270.0,115260.0,0.6509549]
[1758036696169,0.08346,115280.0,115270.0,0.17350568]
[1758036696402,0.3573,115280.0,115270.0,0.65943985]
[1758036697023,0.3573,115280.0,115270.0,0.74964502]
[1758036697451,0.3573,115280.0,115270.0,0.75164502]
[1758036698675,0.3583,115280.0,115270.0,1.25464502]
[1758036699454,0.3583,115280.0,115270.0,1.24614502]
[1758036699735,0.3583,115280.0,115270.0,1.64614502]
[1758036704381,0.3583,115280.0,115270.0,1.65494092]
[1758036705019,0.3583,115280.0,115270.0,1.66344092]
[1758036705241,0.3583,115280.0,115270.0,1.2952982]
[1758036705451,0.3583,115280.0,115270.0,1.66344092]
[1758036705678,0.3583,115280.0,115270.0,1.2952982]
[1758036707462,0.36326,115280.0,115270.0,1.2952982]
[1758036707891,0.36028,115280.0,115270.0,1.2952982]
[1758036708447,0.3583,115280.0,115270.0,1.2952982]
[1758036711665,0.36326,115280.0,115270.0,1.2952982]
[1758036712074,0.36028,115280.0,115270.0,1.2952982]
[1758036712335,0.3583,115280.0,115270.0,1.2952982]
[1758036714282,0.3583,115280.0,115270.0,1.66344092]
[1758036715365,0.3583,115280.0,115270.0,1.2952982]
[1758036715571,0.08446,115280.0,115270.0,1.66344092]
[1758036715757,0.35822,115280.0,115270.0,1.66344092]
[1758036715920,0.35822,115280.0,115270.0,1.2952982]
[1758036717091,0.35822,115280.0,115270.0,1.66344092]
[1758036718990,0.35818,115280.0,115270.0,1.66344092]
[1758036720241,0.35818,115280.0,115270.0,1.2952982]
[1758036720475,0.35818,115280.0,115270.0,1.66344092]
[1758036720912,0.35818,115280.0,115270.0,1.2952982]
[1758036721373,0.35818,115280.0,115270.0,1.66344092]
[1758036725472,0.08446,115280.0,115270.0,1.66344092]
[1758036725858,0.35826,115280.0,115270.0,1.66344092]
[1758036726102,0.0011,115280.0,115270.0,1.66344092]
[1758036726333,0.27498,115280.0,115270.0,1.66344092]
[1758036726539,0.27498,115280.0,115270.0,1.2952982]
[1758036726746,0.27498,115280.0,115270.0,1.66344092]
[1758036729044,0.27498,115280.0,115270.0,1.65494092]
[1758036730092,0.27482,115280.0,115270.0,1.66344092]
[1758036730559,0.27482,115280.0,115270.0,1.2952982]
[1758036730955,0.27482,115280.0,115270.0,1.66344092]
[1758036731624,0.27482,115280.0,115270.0,1.2952982]
[1758036731841,0.27482,115280.0,115270.0,1.66344092]
[1758036735216,0.27486,115280.0,115270.0,1.66344092]
[1758036735866,0.0011,115280.0,115270.0,1.66344092]
[1758036736188,0.10406,115280.0,115270.0,1.93716092]
[1758036736392,0.10406,115280.0,115270.0,1.66344092]
[1758036736611,0.0001,115290.0,115280.0,0.51349063]
[1758036736823,0.27382,115300.0,115290.0,0.17347558]
[1758036737027,0.27372,115300.0,115290.0,0.62811975]
[1758036737233,0.27372,115300.0,115290.0,1.05136975]
[1758036737438,0.27372,115300.0,115290.0,1.07742271]
[1758036738962,0.27472,115300.0,115290.0,1.07842271]
[1758036739163,0.27472,115300.0,115290.0,1.07852271]
[1758036739394,0.27472,115300.0,115290.0,0.71037999]
[1758036739516,0.27472,115300.0,115290.0,0.71137999]
[1758036740140,0.27472,115300.0,115290.0,0.68812999]
[1758036740360,0.94130325,115300.0,115290.0,0.69662999]
[1758036740561,1.02462325,115300.0,115290.0,0.69662999]
[1758036740888,0.65648053,115300.0,115290.0,0.69662999]
[1758036741240,0.65658053,115300.0,115290.0,0.69662999]
[1758036743385,0.65658053,115300.0,115290.0,0.69563943]
[1758036743828,1.02472325,115300.0,115290.0,0.52216385]
[1758036744079,1.02472325,115300.0,115290.0,0.12216385]
[1758036744297,1.41472325,115300.0,115290.0,0.0106]
[1758036744738,1.41504325,115300.0,115290.0,0.0106]
[1758036745163,1.41504325,115300.0,115290.0,0.0105]
[1758036745418,1.14100325,115300.0,115290.0,0.0105]
[1758036745628,1.41504325,115300.0,115290.0,0.0105]
[1758036746115,1.23100325,115300.0,115290.0,0.0105]
[1758036746345,1.50504325,115300.0,115290.0,0.0105]
[1758036746561,1.23100325,115300.0,115290.0,0.0105]
[1758036746765,1.50500325,115300.0,115290.0,0.0105]
[1758036747402,1.53515515,115300.0,115290.0,0.0105]
[1758036747874,1.92562812,115300.0,115290.0,1e-08]
[1758036748100,1.95169378,115300.0,115290.0,1e-08]
[1758036748695,1.58255106,115300.0,115290.0,1e-08]
[1758036748915,1.95069378,115300.0,115290.0,1e-08]
[1758036749118,1.95469378,115300.0,115290.0,0.001]
[1758036749322,1.95769378,115300.0,115290.0,0.002]
[1758036749729,2.05019594,115300.0,115290.0,0.002]
[1758036750769,1.77599594,115300.0,115290.0,0.002]
[1758036751027,2.05015594,115300.0,115290.0,0.002]
[1758036751660,1.77599594,115300.0,115290.0,0.002]
[1758036752099,2.05011594,115300.0,115290.0,0.002]
[1758036752297,1.56349189,115300.0,115290.0,0.002]
[1758036752511,1.33937189,115300.0,115290.0,0.002]
[1758036752980,2.02782569,115300.0,115290.0,0.002]
[1758036754856,1.61353189,115300.0,115290.0,0.002]
[1758036755092,1.33937189,115300.0,115290.0,0.002]
[1758036755318,2.02778569,115300.0,115290.0,0.002]
[1758036755536,1.33937189,115300.0,115290.0,0.002]
[1758036755746,0.86886053,115300.0,115290.0,0.002]
[1758036755992,0.94315433,115300.0,115290.0,0.002]
[1758036756204,1.21735433,115300.0,115290.0,0.08850145]
[1758036756636,0.80306053,115300.0,115290.0,0.48850145]
[1758036756888,1.21435433,115300.0,115290.0,0.48650145]
[1758036757082,1.21335433,115300.0,115290.0,0.48750145]
[1758036757310,1.16735433,115300.0,115290.0,0.48850145]
[1758036757526,0.72808053,115300.0,115290.0,0.66197703]
[1758036757746,0.72808053,115300.0,115290.0,0.51324145]
[1758036757954,0.65088053,115300.0,115290.0,0.51324145]
[1758036758173,0.75088053,115300.0,115290.0,0.48850145]
[1758036758384,0.74788053,115300.0,115290.0,0.48750145]
[1758036758596,1.15817433,115300.0,115290.0,0.48650145]
[1758036758801,1.16217433,115300.0,115290.0,0.48750145]
[1758036759153,0.88797433,115300.0,115290.0,0.66097703]
[1758036759373,0.88797433,115300.0,115290.0,0.68571703]
[1758036759374,1.16221433,115300.0,115290.0,0.68571703]
[1758036759569,1.16221433,115300.0,115290.0,0.28571703]
[1758036760057,0.55166,115300.0,115290.0,0.66097703]
[1758036760270,0.55166,115300.0,115290.0,0.68571703]
[1758036760514,0.27742,115300.0,115290.0,1.10001083]
[1758036760726,0.46166,115300.0,115290.0,1.10011083]
[1758036761771,0.46166,115300.0,115290.0,0.68581703]
[1758036761950,0.46166,115300.0,115290.0,1.10011083]
[1758036762500,0.46166,115300.0,115290.0,0.68581703]
[1758036763176,0.46166,115300.0,115290.0,1.10011083]
[1758036763305,0.46166,115300.0,115290.0,0.68581703]
[1758036763750,0.63512053,115300.0,115290.0,0.68581703]
[1758036764012,0.46166,115300.0,115290.0,0.68581703]
[1758036764777,0.63512053,115300.0,115290.0,0.68581703]
[1758036764987,0.46166,115300.0,115290.0,0.68581703]
[1758036768278,0.63512053,115300.0,115290.0,0.68581703]
[1758036768623,0.65792053,115300.0,115290.0,0.68581703]
[1758036769457,0.48446,115300.0,115290.0,0.68581703]
[1758036769660,0.65792053,115300.0,115290.0,0.68581703]
[1758036771203,0.48446,115300.0,115290.0,0.68581703]
[1758036771424,0.65792053,115300.0,115290.0,0.68581703]
[1758036772985,0.48446,115300.0,115290.0,0.68581703]
[1758036773246,1.07221433,115300.0,115290.0,0.51234145]
[1758036773478,1.07221433,115300.0,115290.0,0.48760145]
[1758036773742,1.07221433,115300.0,115290.0,0.08760145]
[1758036774507,0.65792053,115300.0,115290.0,0.08760145]
[1758036774729,1.07201433,115300.0,115290.0,0.08760145]
[1758036774986,1.07201433,115300.0,115290.0,0.08750145]
[1758036776679,1.53630813,115300.0,115290.0,0.08750145]
[1758036776899,1.12201433,115300.0,115290.0,0.08750145]
[1758036777528,0.84797433,115300.0,115290.0,0.08750145]
[1758036777740,1.12209433,115300.0,115290.0,0.08750145]
[1758036777945,0.84797433,115300.0,115290.0,0.08750145]
[1758036778149,1.12217433,115300.0,115290.0,0.08750145]
[1758036778777,0.43368053,115300.0,115290.0,0.08750145]
[1758036778984,0.84797433,115300.0,115290.0,0.08750145]
[1758036779204,1.12217433,115300.0,115290.0,0.08750145]
[1758036779404,0.84797433,115300.0,115290.0,0.08750145]
[1758036779638,1.12233433,115300.0,115290.0,0.08750145]
[1758036780415,1.12757433,115300.0,115290.0,0.08750145]
[1758036781091,0.85321433,115300.0,115290.0,0.08750145]
[1758036781314,1.12761433,115300.0,115290.0,0.08750145]
[1758036782948,0.85321433,115300.0,115290.0,0.08750145]
[1758036783164,0.71328053,115300.0,115290.0,0.08750145]
[1758036783572,1.12757433,115300.0,115290.0,0.08750145]
[1758036784006,1.12757433,115300.0,115290.0,0.48750145]
[1758036784184,0.71328053,115300.0,115290.0,0.48750145]
[1758036784420,1.12757433,115300.0,115290.0,0.49600145]
[1758036784630,0.71340053,115300.0,115290.0,0.49600145]
[1758036784809,1.12769433,115300.0,115290.0,0.49600145]
[1758036786981,1.12769433,115300.0,115290.0,0.09600145]
[1758036787396,1.12769433,115300.0,115290.0,0.49600145]
[1758036788422,1.12769433,115300.0,115290.0,0.51957145]
[1758036788665,1.12769433,115300.0,115290.0,0.49600145]
[1758036789509,1.12769433,115300.0,115290.0,0.09600145]
[1758036791252,1.12769433,115300.0,115290.0,0.49600145]
[1758036793641,0.85321433,115300.0,115290.0,0.49600145]
[1758036793856,1.12737433,115300.0,115290.0,0.49600145]
[1758036794270,1.12737433,115300.0,115290.0,0.09600145]
[1758036794694,1.12737433,115300.0,115290.0,0.49600145]
[1758036797916,1.12737433,115300.0,115290.0,0.09600145]
[1758036798521,1.12737433,115300.0,115290.0,0.49600145]
[1758036798995,1.12721433,115300.0,115290.0,0.49600145]
[1758036801365,1.12721433,115300.0,115290.0,0.09600145]
[1758036801950,1.12721433,115300.0,115290.0,0.49600145]
[1758036804356,0.71292053,115300.0,115290.0,0.49600145]
[1758036804730,1.12721433,115300.0,115290.0,0.49600145]
[1758036804933,0.19266,115300.0,115290.0,0.26947703]
[1758036805152,0.4613,115300.0,115290.0,0.70734083]
[1758036805504,0.4613,115300.0,115290.0,1.10734083]
[1758036805907,0.4613,115300.0,115290.0,1.10744083]
[1758036809317,0.4613,115300.0,115290.0,1.09894083]
[1758036809864,0.4613,115300.0,115290.0,1.05255407]
[1758036810507,0.18742,115300.0,115290.0,1.05255407]
[1758036810643,0.46122,115300.0,115290.0,1.05255407]
[1758036811065,0.46122,115300.0,115290.0,0.68464703]
[1758036812301,0.63983053,115300.0,115290.0,0.49610145]
[1758036812545,0.66309053,115300.0,115290.0,0.66957703]
[1758036819031,0.66309053,115300.0,115290.0,0.26957703]
[1758036819446,0.66309053,115300.0,115290.0,0.66957703]
[1758036819855,1.03099757,115300.0,115290.0,0.49610145]
[1758036820088,0.38929053,115300.0,115290.0,0.66957703]
[1758036820345,0.66305053,115300.0,115290.0,0.66957703]
[1758036822536,0.66305053,115300.0,115290.0,0.26957703]
[1758036823084,0.66305053,115300.0,115290.0,0.66957703]
[1758036826184,0.21583,115300.0,115290.0,0.66957703]
[1758036826419,0.46118,115300.0,115290.0,0.29448703]
[1758036826690,0.18742,115300.0,115290.0,0.29448703]
[1758036826943,0.46118,115300.0,115290.0,1.06239407]
[1758036827177,0.46118,115300.0,115290.0,0.69448703]
[1758036828801,0.18742,115300.0,115290.0,0.69448703]
[1758036829016,0.18742,115300.0,115290.0,1.06239407]
[1758036829298,0.36118,115300.0,115290.0,1.06239407]
[1758036831641,0.35918,115300.0,115290.0,1.06139407]
[1758036831839,0.08542,115300.0,115290.0,1.06139407]
[1758036832066,0.35718,115300.0,115290.0,1.08744755]
[1758036832837,0.35718,115300.0,115290.0,1.08844755]
[1758036833038,0.0001,115300.0,115290.0,1.08844755]
[1758036833275,0.43346,115310.0,115300.0,0.17346053]
[1758036833470,0.60722,115310.0,115300.0,0.65277902]
[1758036834040,0.27386,115310.0,115300.0,1.05277902]
[1758036834240,0.37386,115310.0,115300.0,1.05277902]
[1758036834449,0.27386,115310.0,115300.0,1.05277902]
[1758036834605,0.37386,115310.0,115300.0,1.05287902]
[1758036835014,0.0021,115310.0,115300.0,1.05387902]
[1758036835217,0.37586,115310.0,115300.0,1.05387902]
[1758036835823,0.37686,115310.0,115300.0,1.05387902]
[1758036836020,0.37686,115310.0,115300.0,1.11814529]
[1758036836424,0.37686,115310.0,115300.0,1.14419726]
[1758036837695,0.37686,115310.0,115300.0,0.75023825]
[1758036838138,0.37686,115310.0,115300.0,0.72532825]
[1758036838139,0.40554,115310.0,115300.0,0.72532825]
[1758036838567,0.38195,115310.0,115300.0,0.72532825]
[1758036838771,0.57935549,115310.0,115300.0,0.73382825]
[1758036838974,0.40591,115310.0,115300.0,0.73382825]
[1758036839618,0.40591,115310.0,115300.0,0.75781825]
[1758036839802,0.40591,115310.0,115300.0,0.73382825]
[1758036840815,0.40591,115310.0,115300.0,0.75781825]
[1758036841030,0.57935549,115310.0,115300.0,0.75781825]
[1758036841249,0.57935549,115310.0,115300.0,0.73382825]
[1758036841675,0.40591,115310.0,115300.0,0.73382825]
[1758036842240,0.38195,115310.0,115300.0,0.73382825]
[1758036842446,0.40591,115310.0,115300.0,0.73382825]
[1758036843060,0.57935549,115310.0,115300.0,0.73382825]
[1758036843271,0.40591,115310.0,115300.0,0.73382825]
[1758036844840,0.57935549,115310.0,115300.0,0.73382825]
[1758036845066,0.40591,115310.0,115300.0,0.73382825]
[1758036847389,0.40587,115310.0,115300.0,0.73382825]
[1758036848688,0.57931549,115310.0,115300.0,0.73382825]
[1758036848901,0.94722253,115310.0,115300.0,0.56036772]
[1758036849561,0.99722253,115310.0,115300.0,0.56036772]
[1758036850402,1.33050253,115310.0,115300.0,0.56036772]
[1758036850876,1.33046253,115310.0,115300.0,0.56036772]
[1758036852424,1.05678253,115310.0,115300.0,0.56036772]
[1758036852633,1.33046253,115310.0,115300.0,0.56036772]
[1758036853243,1.33046253,115310.0,115300.0,0.16036772]
[1758036853625,1.33046253,115310.0,115300.0,0.56036772]
[1758036854134,1.05678253,115310.0,115300.0,0.56036772]
[1758036854520,1.33046253,115310.0,115300.0,0.56036772]
[1758036855372,1.05678253,115310.0,115300.0,0.56036772]
[1758036855579,1.33046253,115310.0,115300.0,0.56036772]
[1758036856629,1.33046253,115310.0,115300.0,0.16036772]
[1758036857053,1.33046253,115310.0,115300.0,0.56036772]